[Event "Titled Tuesday Blitz August 1 Early 2023"]
[White "campochess"]
[Black "Mikhalsky, Vladimir"]
[BlackFideId "14144352"]
[WhiteElo "2213"]
[BlackElo "2385"]
[Result "1/2-1/2"]
[Round "4"]
[TimeControl "180+1"]
[Date "2023.08.01"]
[WhiteClock "0:00:40"]
[BlackClock "0:00:18"]
[Board "219"]

1. d4 {[%clk 0:02:53]}  Nf6 {[%clk 0:02:58]} 2. Bg5 {[%clk 0:02:53]}  g6 {[%clk 0:02:58]} 3. Bxf6 {[%clk 0:02:53]}  exf6 {[%clk 0:02:57]} 4. c4 {[%clk 0:02:53]}  f5 {[%clk 0:02:57]} 5. Nc3 {[%clk 0:02:52]}  Bg7 {[%clk 0:02:57]} 6. e3 {[%clk 0:02:52]}  O-O {[%clk 0:02:53]} 7. g3 {[%clk 0:02:52]}  c5 {[%clk 0:02:53]} 8. Nge2 {[%clk 0:02:49]}  cxd4 {[%clk 0:02:46]} 9. exd4 {[%clk 0:02:49]}  Qb6 {[%clk 0:02:37]} 10. Bg2 {[%clk 0:02:45]}  Qxb2 {[%clk 0:02:34]} 11. O-O {[%clk 0:02:44]}  Nc6 {[%clk 0:02:33]} 12. Rb1 {[%clk 0:02:44]}  Qa3 {[%clk 0:02:33]} 13. Rb3 {[%clk 0:02:42]}  Qa5 {[%clk 0:02:27]} 14. Rb5 {[%clk 0:02:37]}  Qa3 {[%clk 0:02:17]} 15. Rb3 {[%clk 0:02:34]}  Qe7 {[%clk 0:02:10]} 16. Nd5 {[%clk 0:02:32]}  Qd6 {[%clk 0:02:09]} 17. c5 {[%clk 0:02:30]}  Qb8 {[%clk 0:02:07]} 18. Nb4 {[%clk 0:02:16]}  Nxb4 {[%clk 0:01:59]} 19. Rxb4 {[%clk 0:02:15]}  a5 {[%clk 0:01:52]} 20. Rb1 {[%clk 0:02:08]}  Qc7 {[%clk 0:01:47]} 21. Nf4 {[%clk 0:02:06]}  d6 {[%clk 0:01:43]} 22. Nd5 {[%clk 0:02:06]}  Qd8 {[%clk 0:01:43]} 23. Re1 {[%clk 0:01:57]}  Rb8 {[%clk 0:01:10]} 24. Ne7+ {[%clk 0:01:44]}  Kh8 {[%clk 0:01:09]} 25. Nxc8 {[%clk 0:01:41]}  Qxc8 {[%clk 0:01:09]} 26. cxd6 {[%clk 0:01:40]}  Qd7 {[%clk 0:01:06]} 27. Re7 {[%clk 0:01:28]}  Qxd6 {[%clk 0:01:04]} 28. Rexb7 {[%clk 0:01:28]}  Rxb7 {[%clk 0:01:02]} 29. Rxb7 {[%clk 0:01:26]}  Bxd4 {[%clk 0:01:01]} 30. Kh1 {[%clk 0:01:22]}  f4 {[%clk 0:00:58]} 31. Rb5 {[%clk 0:01:15]}  Rd8 {[%clk 0:00:51]} 32. Rxa5 {[%clk 0:01:13]}  fxg3 {[%clk 0:00:46]} 33. Rd5 {[%clk 0:01:05]}  Qf6 {[%clk 0:00:46]} 34. Rxd8+ {[%clk 0:01:05]}  Qxd8 {[%clk 0:00:46]} 35. hxg3 {[%clk 0:01:03]}  Qb6 {[%clk 0:00:45]} 36. f4 {[%clk 0:00:58]}  Bf6 {[%clk 0:00:23]} 37. Kh2 {[%clk 0:00:57]}  h5 {[%clk 0:00:21]} 38. Qd5 {[%clk 0:00:56]}  h4 {[%clk 0:00:20]} 39. gxh4 {[%clk 0:00:52]}  Qf2 {[%clk 0:00:20]} 40. Qxf7 {[%clk 0:00:46]}  Qxf4+ {[%clk 0:00:19]} 41. Kh1 {[%clk 0:00:44]}  Qc1+ {[%clk 0:00:17]} 42. Kh2 {[%clk 0:00:44]}  Be5+ {[%clk 0:00:16]} 43. Kh3 {[%clk 0:00:44]}  Qe3+ {[%clk 0:00:16]} 44. Qf3 {[%clk 0:00:43]}  Qxf3+ {[%clk 0:00:16]} 45. Bxf3 {[%clk 0:00:43]}  Kg7 {[%clk 0:00:16]} 46. Kg4 {[%clk 0:00:43]}  Kf6 {[%clk 0:00:16]} 47. h5 {[%clk 0:00:44]}  gxh5+ {[%clk 0:00:16]} 48. Kxh5 {[%clk 0:00:44]}  Ke7 {[%clk 0:00:16]} 49. a4 {[%clk 0:00:44]}  Bc3 {[%clk 0:00:16]} 50. Kg6 {[%clk 0:00:43]}  Kd6 {[%clk 0:00:17]} 51. Be2 {[%clk 0:00:41]}  Kc7 {[%clk 0:00:17]} 52. Kf5 {[%clk 0:00:40]}  Kb6 {[%clk 0:00:17]} 53. Ke4 {[%clk 0:00:39]}  Ka5 {[%clk 0:00:17]} 54. Bb5 {[%clk 0:00:40]}  Bh8 {[%clk 0:00:17]} 55. Kd5 {[%clk 0:00:40]}  Bg7 {[%clk 0:00:17]} 56. Kc4 {[%clk 0:00:40]}  Bh8 {[%clk 0:00:17]} 57. Kd5 {[%clk 0:00:40]}  Bg7 {[%clk 0:00:17]} 58. Kc4 {[%clk 0:00:40]}  Bh8 {[%clk 0:00:18]} 59. Kd5 {[%clk 0:00:40]} 1/2-1/2


[Site "https://www.chess.com"]

[Event "Titled Tuesday Blitz August 1 Early 2023"]
[White "UgarteCesar"]
[Black "Jegorovas, Aleksandras"]
[BlackFideId "12801950"]
[WhiteElo "2206"]
[BlackElo "2346"]
[Result "0-1"]
[Round "4"]
[TimeControl "180+1"]
[Date "2023.08.01"]
[WhiteClock "0:00:00"]
[BlackClock "0:01:15"]
[Board "220"]

1. d4 {[%clk 0:03:00]}  e6 {[%clk 0:02:50]} 2. Bf4 {[%clk 0:03:00]}  c5 {[%clk 0:02:46]} 3. e3 {[%clk 0:03:00]}  Nc6 {[%clk 0:02:46]} 4. c3 {[%clk 0:02:59]}  d5 {[%clk 0:02:46]} 5. Nf3 {[%clk 0:02:58]}  Bd6 {[%clk 0:02:46]} 6. Bg3 {[%clk 0:02:58]}  Nf6 {[%clk 0:02:46]} 7. Bd3 {[%clk 0:02:58]}  O-O {[%clk 0:02:46]} 8. Nbd2 {[%clk 0:02:58]}  b6 {[%clk 0:02:47]} 9. O-O {[%clk 0:02:57]}  Bb7 {[%clk 0:02:47]} 10. Ne5 {[%clk 0:02:55]}  Ne7 {[%clk 0:02:47]} 11. f4 {[%clk 0:02:55]}  Nf5 {[%clk 0:02:47]} 12. Bxf5 {[%clk 0:02:55]}  exf5 {[%clk 0:02:47]} 13. Bh4 {[%clk 0:02:55]}  Be7 {[%clk 0:02:47]} 14. Bxf6 {[%clk 0:02:55]}  Bxf6 {[%clk 0:02:47]} 15. Ndf3 {[%clk 0:02:54]}  g6 {[%clk 0:02:46]} 16. g4 {[%clk 0:02:52]}  fxg4 {[%clk 0:02:45]} 17. Nxg4 {[%clk 0:02:51]}  Bg7 {[%clk 0:02:46]} 18. Qd2 {[%clk 0:02:44]}  Qe7 {[%clk 0:02:45]} 19. Rae1 {[%clk 0:02:44]}  Rae8 {[%clk 0:02:43]} 20. Qf2 {[%clk 0:02:37]}  Bc8 {[%clk 0:02:39]} 21. Nge5 {[%clk 0:02:36]}  f6 {[%clk 0:02:38]} 22. Nd3 {[%clk 0:02:35]}  Bh3 {[%clk 0:02:38]} 23. dxc5 {[%clk 0:02:29]}  bxc5 {[%clk 0:02:37]} 24. b4 {[%clk 0:02:28]}  Bxf1 {[%clk 0:02:36]} 25. Kxf1 {[%clk 0:02:27]}  cxb4 {[%clk 0:02:37]} 26. Nxb4 {[%clk 0:02:27]}  Qc5 {[%clk 0:02:28]} 27. Qd2 {[%clk 0:02:24]}  Qc4+ {[%clk 0:02:25]} 28. Kf2 {[%clk 0:02:21]}  Rd8 {[%clk 0:02:25]} 29. Nd4 {[%clk 0:02:19]}  Rfe8 {[%clk 0:02:11]} 30. Nbc6 {[%clk 0:02:17]}  Rd6 {[%clk 0:02:05]} 31. Na5 {[%clk 0:02:09]}  Qa4 {[%clk 0:02:01]} 32. Nab3 {[%clk 0:02:08]}  f5 {[%clk 0:01:59]} 33. Re2 {[%clk 0:02:02]}  Qc4 {[%clk 0:01:54]} 34. Qb2 {[%clk 0:01:53]}  Ra6 {[%clk 0:01:47]} 35. Qd2 {[%clk 0:01:29]}  Bxd4 {[%clk 0:01:38]} 36. cxd4 {[%clk 0:00:58]}  Rb8 {[%clk 0:01:28]} 37. Nc5 {[%clk 0:00:57]}  Ra3 {[%clk 0:01:27]} 38. h4 {[%clk 0:00:55]}  Rb1 {[%clk 0:01:27]} 39. h5 {[%clk 0:00:55]}  Ra1 {[%clk 0:01:26]} 40. Qb2 {[%clk 0:00:44]}  R1xa2 {[%clk 0:01:23]} 41. Qb8+ {[%clk 0:00:44]}  Kg7 {[%clk 0:01:23]} 42. Ne6+ {[%clk 0:00:21]}  Kh6 {[%clk 0:01:14]} 43. Qf8+ {[%clk 0:00:18]}  Kxh5 {[%clk 0:01:15]} 44. Ng7+ {[%clk 0:00:00]}  Kg4 {[%clk 0:01:15]} 0-1


[Site "https://www.chess.com"]

[Event "Titled Tuesday Blitz August 1 Early 2023"]
[White "Johnson, Ben"]
[Black "Pavlidou, Ekaterini"]
[WhiteFideId "2010917"]
[BlackFideId "4213262"]
[WhiteElo "2133"]
[BlackElo "2327"]
[Result "0-1"]
[Round "4"]
[TimeControl "180+1"]
[Date "2023.08.01"]
[WhiteClock "0:01:48"]
[BlackClock "0:02:16"]
[Board "222"]

1. Nf3 {[%clk 0:03:00]}  d5 {[%clk 0:02:59]} 2. e3 {[%clk 0:03:01]}  c5 {[%clk 0:02:58]} 3. b3 {[%clk 0:03:00]}  Nc6 {[%clk 0:02:55]} 4. Bb2 {[%clk 0:03:00]}  Nf6 {[%clk 0:02:54]} 5. Bb5 {[%clk 0:03:00]}  Bg4 {[%clk 0:02:54]} 6. h3 {[%clk 0:02:57]}  Bh5 {[%clk 0:02:50]} 7. g4 {[%clk 0:02:56]}  Bg6 {[%clk 0:02:50]} 8. Ne5 {[%clk 0:02:56]}  Rc8 {[%clk 0:02:49]} 9. h4 {[%clk 0:02:51]}  d4 {[%clk 0:02:34]} 10. h5 {[%clk 0:02:31]}  Be4 {[%clk 0:02:30]} 11. d3 {[%clk 0:02:28]}  Bxh1 {[%clk 0:02:29]} 12. f3 {[%clk 0:02:20]}  Qd5 {[%clk 0:02:23]} 13. Nxf7 {[%clk 0:01:57]}  Qxf7 {[%clk 0:02:20]} 14. Kf2 {[%clk 0:01:48]}  Nxg4+ {[%clk 0:02:16]} 0-1


[Site "https://www.chess.com"]

[Event "Titled Tuesday Blitz August 1 Early 2023"]
[White "Vasques, Antonio Pedro Freixial"]
[Black "ilya2700"]
[WhiteFideId "1908332"]
[WhiteElo "2316"]
[BlackElo "2043"]
[Result "0-1"]
[Round "4"]
[TimeControl "180+1"]
[Date "2023.08.01"]
[WhiteClock "0:00:00"]
[BlackClock "0:00:38"]
[Board "224"]

1. d4 {[%clk 0:03:00]}  d5 {[%clk 0:02:59]} 2. Nf3 {[%clk 0:02:59]}  e6 {[%clk 0:02:59]} 3. c4 {[%clk 0:02:59]}  c5 {[%clk 0:02:58]} 4. cxd5 {[%clk 0:02:58]}  exd5 {[%clk 0:02:59]} 5. Nc3 {[%clk 0:02:57]}  Nf6 {[%clk 0:02:59]} 6. Bg5 {[%clk 0:02:57]}  Be6 {[%clk 0:02:56]} 7. e3 {[%clk 0:02:55]}  Nc6 {[%clk 0:02:55]} 8. Be2 {[%clk 0:02:52]}  Be7 {[%clk 0:02:51]} 9. O-O {[%clk 0:02:50]}  O-O {[%clk 0:02:51]} 10. dxc5 {[%clk 0:02:51]}  Bxc5 {[%clk 0:02:51]} 11. Rc1 {[%clk 0:02:49]}  Bb6 {[%clk 0:02:51]} 12. Nb5 {[%clk 0:02:39]}  Rc8 {[%clk 0:02:42]} 13. Qd2 {[%clk 0:02:19]}  Ne4 {[%clk 0:02:26]} 14. Bxd8 {[%clk 0:02:12]}  Nxd2 {[%clk 0:02:25]} 15. Bxb6 {[%clk 0:02:11]}  Nxf3+ {[%clk 0:02:08]} 16. Bxf3 {[%clk 0:02:12]}  axb6 {[%clk 0:02:09]} 17. Nd6 {[%clk 0:02:12]}  Ra8 {[%clk 0:02:07]} 18. Nxb7 {[%clk 0:02:11]}  Ne5 {[%clk 0:02:02]} 19. a3 {[%clk 0:02:07]}  Nc4 {[%clk 0:01:39]} 20. b3 {[%clk 0:01:40]}  Nxa3 {[%clk 0:01:33]} 21. Nd6 {[%clk 0:01:40]}  Rfd8 {[%clk 0:01:27]} 22. Rc6 {[%clk 0:01:38]}  Rab8 {[%clk 0:01:17]} 23. Rd1 {[%clk 0:01:34]}  Bd7 {[%clk 0:01:12]} 24. Rc7 {[%clk 0:01:33]}  Be6 {[%clk 0:01:11]} 25. Ra1 {[%clk 0:01:16]}  Rxd6 {[%clk 0:01:04]} 26. Rxa3 {[%clk 0:01:05]}  d4 {[%clk 0:01:04]} 27. exd4 {[%clk 0:01:00]}  Rxd4 {[%clk 0:01:04]} 28. g3 {[%clk 0:01:00]}  Bh3 {[%clk 0:00:56]} 29. Ra1 {[%clk 0:00:49]}  Rd3 {[%clk 0:00:53]} 30. Bg2 {[%clk 0:00:44]}  Bxg2 {[%clk 0:00:52]} 31. Kxg2 {[%clk 0:00:45]}  Rxb3 {[%clk 0:00:51]} 32. Raa7 {[%clk 0:00:46]}  Rf8 {[%clk 0:00:48]} 33. Rab7 {[%clk 0:00:00]}  g6 {[%clk 0:00:38]} 0-1


[Site "https://www.chess.com"]

[Event "Titled Tuesday Blitz August 1 Early 2023"]
[White "Gopal, K.N."]
[Black "Martin, Lewis"]
[WhiteFideId "5001447"]
[BlackFideId "410551"]
[WhiteElo "2037"]
[BlackElo "2271"]
[Result "1/2-1/2"]
[Round "4"]
[TimeControl "180+1"]
[Date "2023.08.01"]
[WhiteClock "0:00:11"]
[BlackClock "0:00:15"]
[Board "225"]

1. c4 {[%clk 0:02:57]}  c6 {[%clk 0:02:59]} 2. g3 {[%clk 0:02:54]}  d5 {[%clk 0:02:57]} 3. Bg2 {[%clk 0:02:54]}  Nf6 {[%clk 0:02:57]} 4. Nf3 {[%clk 0:02:52]}  Nbd7 {[%clk 0:02:54]} 5. b3 {[%clk 0:02:52]}  e5 {[%clk 0:02:52]} 6. Bb2 {[%clk 0:02:51]}  Bd6 {[%clk 0:02:50]} 7. c5 {[%clk 0:02:49]}  Bxc5 {[%clk 0:02:38]} 8. O-O {[%clk 0:02:34]}  e4 {[%clk 0:02:31]} 9. Nd4 {[%clk 0:02:13]}  O-O {[%clk 0:02:30]} 10. d3 {[%clk 0:01:40]}  exd3 {[%clk 0:02:28]} 11. Qxd3 {[%clk 0:01:31]}  Ne5 {[%clk 0:02:27]} 12. Qc2 {[%clk 0:01:28]}  Bd6 {[%clk 0:02:26]} 13. Nd2 {[%clk 0:01:27]}  Re8 {[%clk 0:02:23]} 14. Nf5 {[%clk 0:01:24]}  Bf8 {[%clk 0:02:21]} 15. Rfe1 {[%clk 0:01:20]}  g6 {[%clk 0:02:06]} 16. Nd4 {[%clk 0:01:15]}  Bg7 {[%clk 0:02:05]} 17. Rad1 {[%clk 0:01:14]}  Qb6 {[%clk 0:01:57]} 18. e4 {[%clk 0:01:07]}  Bg4 {[%clk 0:01:38]} 19. Rc1 {[%clk 0:00:56]}  Rad8 {[%clk 0:01:31]} 20. exd5 {[%clk 0:00:54]}  Nxd5 {[%clk 0:01:30]} 21. Nc4 {[%clk 0:00:48]}  Nxc4 {[%clk 0:01:28]} 22. Rxe8+ {[%clk 0:00:42]}  Rxe8 {[%clk 0:01:27]} 23. Qxc4 {[%clk 0:00:36]}  Qb4 {[%clk 0:01:12]} 24. Bxd5 {[%clk 0:00:34]}  Qxc4 {[%clk 0:01:05]} 25. Bxc4 {[%clk 0:00:32]}  c5 {[%clk 0:01:02]} 26. Bb5 {[%clk 0:00:30]}  Rd8 {[%clk 0:00:59]} 27. h3 {[%clk 0:00:18]}  Bxh3 {[%clk 0:00:55]} 28. Rxc5 {[%clk 0:00:17]}  Bxd4 {[%clk 0:00:50]} 29. Bxd4 {[%clk 0:00:17]}  Rxd4 {[%clk 0:00:50]} 30. Rc7 {[%clk 0:00:18]}  a6 {[%clk 0:00:39]} 31. Bc4 {[%clk 0:00:17]}  Be6 {[%clk 0:00:33]} 32. Bxe6 {[%clk 0:00:17]}  fxe6 {[%clk 0:00:34]} 33. Rxb7 {[%clk 0:00:17]}  Rd2 {[%clk 0:00:35]} 34. Rb6 {[%clk 0:00:17]}  Rxa2 {[%clk 0:00:35]} 35. Rxe6 {[%clk 0:00:17]}  Kf7 {[%clk 0:00:36]} 36. Rb6 {[%clk 0:00:16]}  h5 {[%clk 0:00:35]} 37. Kg2 {[%clk 0:00:16]}  Kg7 {[%clk 0:00:34]} 38. Kf3 {[%clk 0:00:16]}  Kh6 {[%clk 0:00:32]} 39. Ke3 {[%clk 0:00:17]}  Kg5 {[%clk 0:00:33]} 40. Rc6 {[%clk 0:00:16]}  Ra3 {[%clk 0:00:31]} 41. Rc3 {[%clk 0:00:16]}  a5 {[%clk 0:00:30]} 42. Ke4 {[%clk 0:00:15]}  Ra2 {[%clk 0:00:30]} 43. f4+ {[%clk 0:00:14]}  Kg4 {[%clk 0:00:30]} 44. Rc5 {[%clk 0:00:15]}  Re2+ {[%clk 0:00:27]} 45. Kd3 {[%clk 0:00:14]}  Rg2 {[%clk 0:00:26]} 46. Rg5+ {[%clk 0:00:14]}  Kf3 {[%clk 0:00:25]} 47. Rxg6 {[%clk 0:00:14]}  h4 {[%clk 0:00:24]} 48. f5 {[%clk 0:00:13]}  h3 {[%clk 0:00:22]} 49. f6 {[%clk 0:00:13]}  h2 {[%clk 0:00:22]} 50. Rh6 {[%clk 0:00:13]}  Kxg3 {[%clk 0:00:21]} 51. f7 {[%clk 0:00:13]}  Rf2 {[%clk 0:00:22]} 52. Rg6+ {[%clk 0:00:12]}  Kh3 {[%clk 0:00:22]} 53. Rh6+ {[%clk 0:00:13]}  Kg2 {[%clk 0:00:22]} 54. Rg6+ {[%clk 0:00:12]}  Kf1 {[%clk 0:00:22]} 55. Rh6 {[%clk 0:00:12]}  Kg1 {[%clk 0:00:21]} 56. Rg6+ {[%clk 0:00:12]}  Kf1 {[%clk 0:00:19]} 57. Rh6 {[%clk 0:00:13]}  Rxf7 {[%clk 0:00:16]} 58. Rxh2 {[%clk 0:00:12]}  Rf3+ {[%clk 0:00:16]} 59. Kc4 {[%clk 0:00:12]}  Rf4+ {[%clk 0:00:15]} 60. Kb5 {[%clk 0:00:12]}  Rb4+ {[%clk 0:00:15]} 61. Kxa5 {[%clk 0:00:12]}  Rxb3 {[%clk 0:00:16]} 62. Rc2 {[%clk 0:00:12]}  Rf3 {[%clk 0:00:16]} 63. Ra2 {[%clk 0:00:11]}  Rf2 {[%clk 0:00:15]} 1/2-1/2


[Site "https://www.chess.com"]

[Event "Titled Tuesday Blitz August 1 Early 2023"]
[White "Castillo Pena, Patricia Evarista"]
[Black "Schut, Han"]
[WhiteFideId "6412106"]
[BlackFideId "1005561"]
[WhiteElo "1991"]
[BlackElo "2268"]
[Result "0-1"]
[Round "4"]
[TimeControl "180+1"]
[Date "2023.08.01"]
[WhiteClock "0:00:14"]
[BlackClock "0:00:59"]
[Board "226"]

1. d4 {[%clk 0:03:00]}  Nf6 {[%clk 0:02:55]} 2. Nf3 {[%clk 0:02:55]}  g6 {[%clk 0:02:56]} 3. Nc3 {[%clk 0:02:48]}  d5 {[%clk 0:02:55]} 4. Bf4 {[%clk 0:02:47]}  Bg7 {[%clk 0:02:54]} 5. e3 {[%clk 0:02:47]}  O-O {[%clk 0:02:52]} 6. Be2 {[%clk 0:02:47]}  c5 {[%clk 0:02:48]} 7. Ne5 {[%clk 0:02:45]}  cxd4 {[%clk 0:02:30]} 8. exd4 {[%clk 0:02:46]}  Nc6 {[%clk 0:02:31]} 9. O-O {[%clk 0:02:33]}  Bf5 {[%clk 0:02:30]} 10. g4 {[%clk 0:02:28]}  Be6 {[%clk 0:02:27]} 11. h3 {[%clk 0:02:25]}  Rc8 {[%clk 0:02:21]} 12. a3 {[%clk 0:02:24]}  Ne4 {[%clk 0:02:19]} 13. Nxc6 {[%clk 0:02:19]}  bxc6 {[%clk 0:02:05]} 14. Nxe4 {[%clk 0:02:06]}  dxe4 {[%clk 0:02:06]} 15. c4 {[%clk 0:02:04]}  Qxd4 {[%clk 0:01:59]} 16. Qxd4 {[%clk 0:01:50]}  Bxd4 {[%clk 0:02:00]} 17. Rab1 {[%clk 0:01:46]}  c5 {[%clk 0:01:54]} 18. Rfd1 {[%clk 0:01:45]}  Rfd8 {[%clk 0:01:50]} 19. Bg5 {[%clk 0:01:40]}  f6 {[%clk 0:01:48]} 20. Be3 {[%clk 0:01:37]}  Kf7 {[%clk 0:01:43]} 21. Kf1 {[%clk 0:01:25]}  h5 {[%clk 0:01:40]} 22. Kg2 {[%clk 0:01:20]}  h4 {[%clk 0:01:36]} 23. b3 {[%clk 0:01:09]}  Rb8 {[%clk 0:01:32]} 24. Kf1 {[%clk 0:00:54]}  f5 {[%clk 0:01:19]} 25. gxf5 {[%clk 0:00:43]}  Bxf5 {[%clk 0:01:18]} 26. Kg2 {[%clk 0:00:40]}  e5 {[%clk 0:01:13]} 27. Bg5 {[%clk 0:00:38]}  Rh8 {[%clk 0:01:11]} 28. Be3 {[%clk 0:00:28]}  Kf6 {[%clk 0:01:08]} 29. Rg1 {[%clk 0:00:21]}  g5 {[%clk 0:01:08]} 30. Bg4 {[%clk 0:00:18]}  Bxg4 {[%clk 0:01:06]} 31. hxg4 {[%clk 0:00:19]}  Bxe3 {[%clk 0:01:04]} 32. fxe3 {[%clk 0:00:20]}  Rbd8 {[%clk 0:01:05]} 33. Rgd1 {[%clk 0:00:18]}  Rd3 {[%clk 0:01:06]} 34. Kf2 {[%clk 0:00:18]}  Rhd8 {[%clk 0:01:05]} 35. Ke2 {[%clk 0:00:17]}  Rxd1 {[%clk 0:00:58]} 36. Rxd1 {[%clk 0:00:17]}  Rxd1 {[%clk 0:00:58]} 37. Kxd1 {[%clk 0:00:14]}  h3 {[%clk 0:00:59]} 0-1


[Site "https://www.chess.com"]

[Event "Titled Tuesday Blitz August 1 Early 2023"]
[White "Pein, Jonathan"]
[Black "Vaglio Munoz, Jaime"]
[WhiteFideId "417092"]
[BlackFideId "6500145"]
[WhiteElo "2456"]
[BlackElo "2246"]
[Result "0-1"]
[Round "4"]
[TimeControl "180+1"]
[Date "2023.08.01"]
[WhiteClock "0:00:43"]
[BlackClock "0:00:39"]
[Board "232"]

1. e4 {[%clk 0:02:58]}  c5 {[%clk 0:02:58]} 2. Nf3 {[%clk 0:02:58]}  Qa5 {[%clk 0:02:57]} 3. Na3 {[%clk 0:02:46]}  d6 {[%clk 0:02:55]} 4. c3 {[%clk 0:02:43]}  Nc6 {[%clk 0:02:52]} 5. Nc4 {[%clk 0:02:43]}  Qc7 {[%clk 0:02:51]} 6. d4 {[%clk 0:02:42]}  e6 {[%clk 0:02:41]} 7. Bf4 {[%clk 0:02:42]}  b5 {[%clk 0:02:38]} 8. Ne3 {[%clk 0:02:28]}  cxd4 {[%clk 0:02:33]} 9. cxd4 {[%clk 0:02:28]}  Nf6 {[%clk 0:02:24]} 10. Bd3 {[%clk 0:02:16]}  Qb6 {[%clk 0:01:47]} 11. O-O {[%clk 0:02:10]}  Bb7 {[%clk 0:01:45]} 12. Qb3 {[%clk 0:02:00]}  a6 {[%clk 0:01:43]} 13. e5 {[%clk 0:01:54]}  dxe5 {[%clk 0:01:39]} 14. dxe5 {[%clk 0:01:54]}  Nd7 {[%clk 0:01:38]} 15. Be4 {[%clk 0:01:49]}  Nc5 {[%clk 0:01:37]} 16. Bxc6+ {[%clk 0:01:48]}  Bxc6 {[%clk 0:01:32]} 17. Qc2 {[%clk 0:01:48]}  Rc8 {[%clk 0:01:30]} 18. Rac1 {[%clk 0:01:47]}  Be7 {[%clk 0:01:19]} 19. Ng5 {[%clk 0:01:44]}  h6 {[%clk 0:01:16]} 20. Nf3 {[%clk 0:01:29]}  O-O {[%clk 0:01:11]} 21. Qe2 {[%clk 0:01:22]}  b4 {[%clk 0:01:07]} 22. Nc4 {[%clk 0:01:22]}  Qb5 {[%clk 0:01:06]} 23. Nd6 {[%clk 0:01:11]}  Qxe2 {[%clk 0:01:03]} 24. Rxc5 {[%clk 0:01:09]}  Bxd6 {[%clk 0:00:58]} 25. exd6 {[%clk 0:01:10]}  Bxf3 {[%clk 0:00:57]} 26. Rxc8 {[%clk 0:01:08]}  Rxc8 {[%clk 0:00:46]} 27. gxf3 {[%clk 0:01:08]}  e5 {[%clk 0:00:45]} 28. Be3 {[%clk 0:01:05]}  Qd3 {[%clk 0:00:43]} 29. Rd1 {[%clk 0:00:56]}  Qxd1+ {[%clk 0:00:42]} 30. Kg2 {[%clk 0:00:55]}  Qxd6 {[%clk 0:00:40]} 31. h4 {[%clk 0:00:43]}  f5 {[%clk 0:00:39]} 0-1


[Site "https://www.chess.com"]

[Event "Titled Tuesday Blitz August 1 Early 2023"]
[White "Samaganova, Aleksandra"]
[Black "Balla, Tamas-Kristof"]
[WhiteFideId "13800221"]
[BlackFideId "1208497"]
[WhiteElo "2241"]
[BlackElo "2431"]
[Result "1-0"]
[Round "4"]
[TimeControl "180+1"]
[Date "2023.08.01"]
[WhiteClock "0:00:14"]
[BlackClock "0:00:03"]
[Board "233"]

1. c4 {[%clk 0:03:00]}  c5 {[%clk 0:03:00]} 2. Nc3 {[%clk 0:02:55]}  Nc6 {[%clk 0:03:00]} 3. g3 {[%clk 0:02:55]}  g6 {[%clk 0:03:00]} 4. Bg2 {[%clk 0:02:55]}  Bg7 {[%clk 0:03:00]} 5. e3 {[%clk 0:02:55]}  e6 {[%clk 0:02:54]} 6. Nge2 {[%clk 0:02:54]}  Nge7 {[%clk 0:02:54]} 7. O-O {[%clk 0:02:50]}  O-O {[%clk 0:02:54]} 8. d4 {[%clk 0:02:45]}  cxd4 {[%clk 0:02:49]} 9. exd4 {[%clk 0:02:43]}  d5 {[%clk 0:02:48]} 10. cxd5 {[%clk 0:02:38]}  exd5 {[%clk 0:02:43]} 11. h3 {[%clk 0:02:37]}  Be6 {[%clk 0:02:41]} 12. Be3 {[%clk 0:02:34]}  Qd7 {[%clk 0:02:41]} 13. Kh2 {[%clk 0:02:34]}  Nf5 {[%clk 0:02:37]} 14. Qd2 {[%clk 0:02:31]}  Rad8 {[%clk 0:02:31]} 15. Rad1 {[%clk 0:02:18]}  Rfe8 {[%clk 0:02:22]} 16. a3 {[%clk 0:01:56]}  Nxe3 {[%clk 0:02:05]} 17. fxe3 {[%clk 0:01:55]}  a6 {[%clk 0:01:55]} 18. Nf4 {[%clk 0:01:52]}  Ne7 {[%clk 0:01:54]} 19. Qf2 {[%clk 0:01:45]}  Qd6 {[%clk 0:01:47]} 20. Na4 {[%clk 0:01:39]}  Nf5 {[%clk 0:01:46]} 21. Nc5 {[%clk 0:01:32]}  Bc8 {[%clk 0:01:46]} 22. Rfe1 {[%clk 0:01:26]}  b6 {[%clk 0:01:35]} 23. Ncd3 {[%clk 0:01:23]}  Be6 {[%clk 0:01:15]} 24. Nb4 {[%clk 0:01:20]}  a5 {[%clk 0:01:03]} 25. Nbxd5 {[%clk 0:01:16]}  Bxd5 {[%clk 0:00:48]} 26. Nxd5 {[%clk 0:01:10]}  h5 {[%clk 0:00:40]} 27. e4 {[%clk 0:01:09]}  Ne7 {[%clk 0:00:39]} 28. e5 {[%clk 0:01:00]}  Qe6 {[%clk 0:00:35]} 29. Nc7 {[%clk 0:00:59]}  Qa2 {[%clk 0:00:21]} 30. Nxe8 {[%clk 0:00:46]}  Rxe8 {[%clk 0:00:22]} 31. d5 {[%clk 0:00:42]}  Nf5 {[%clk 0:00:21]} 32. d6 {[%clk 0:00:26]}  Qe6 {[%clk 0:00:10]} 33. Bd5 {[%clk 0:00:23]}  Qd7 {[%clk 0:00:09]} 34. Qg2 {[%clk 0:00:18]}  h4 {[%clk 0:00:09]} 35. Bc6 {[%clk 0:00:16]}  hxg3+ {[%clk 0:00:09]} 36. Kh1 {[%clk 0:00:16]}  Qe6 {[%clk 0:00:05]} 37. Bxe8 {[%clk 0:00:16]}  Qxe8 {[%clk 0:00:06]} 38. d7 {[%clk 0:00:17]}  Qd8 {[%clk 0:00:06]} 39. e6 {[%clk 0:00:14]}  fxe6 {[%clk 0:00:05]} 40. Rxe6 {[%clk 0:00:14]}  Nh4 {[%clk 0:00:05]} 41. Re8+ {[%clk 0:00:14]}  Kh7 {[%clk 0:00:05]} 42. Rxd8 {[%clk 0:00:14]}  Nxg2 {[%clk 0:00:03]} 43. Kxg2 {[%clk 0:00:14]} 1-0


[Site "https://www.chess.com"]